bitfinex/quotes_BTCUSD_20240810
["timestamp","ask_amount","ask_price","bid_price","bid_amount"]
[1723312315712,0.000831,60781.0,60780.0,1.8398671]
[1723312316387,0.00528965,60781.0,60780.0,1.69224262]
[1723312318071,0.08258965,60781.0,60780.0,1.13388592]
[1723312318241,0.08258965,60781.0,60780.0,1.69242254]
[1723312318444,0.00528965,60781.0,60780.0,1.69242254]
[1723312319531,0.00528965,60781.0,60780.0,1.692532]
[1723312319737,0.00528965,60781.0,60780.0,1.69253202]
[1723312320342,0.00528965,60781.0,60780.0,1.77243202]
[1723312320547,0.00528965,60781.0,60780.0,1.9300565]
[1723312320753,0.00528965,60781.0,60780.0,1.78243202]
[1723312321767,0.00528965,60781.0,60780.0,1.7823193]
[1723312322361,0.000831,60781.0,60780.0,1.7823193]
[1723312322572,0.000831,60781.0,60780.0,1.88525221]
[1723312322773,0.000831,60781.0,60780.0,1.7823193]
[1723312323949,0.000831,60781.0,60780.0,1.7024193]
[1723312324194,0.063531,60781.0,60780.0,1.6924193]
[1723312324816,0.000831,60781.0,60780.0,1.6924193]
[1723312325221,0.000831,60781.0,60780.0,1.61352785]
[1723312325446,0.000831,60781.0,60780.0,1.69222785]
[1723312327299,0.000831,60781.0,60780.0,1.83988148]
[1723312328734,0.000831,60781.0,60780.0,1.83953275]
[1723312329143,0.000831,60781.0,60780.0,1.60046283]
[1723312329335,0.000831,60781.0,60780.0,1.8395373]
[1723312332185,0.000831,60781.0,60780.0,1.83959517]
[1723312333589,0.000831,60781.0,60780.0,1.91999517]
[1723312333792,0.000831,60781.0,60780.0,1.77234154]
[1723312335604,0.000831,60781.0,60780.0,1.53326753]
[1723312335887,0.000831,60781.0,60780.0,1.7723342]
[1723312336184,0.000831,60781.0,60780.0,1.88512832]
[1723312336384,0.000831,60781.0,60780.0,1.87527228]
[1723312336816,0.000831,60781.0,60780.0,1.86127228]
[1723312337017,0.000831,60781.0,60780.0,1.87527228]
[1723312337215,0.000831,60781.0,60780.0,1.86127228]
[1723312337617,0.000831,60781.0,60780.0,1.87527228]
[1723312337737,0.000831,60781.0,60780.0,1.86127228]
[1723312338167,0.000831,60781.0,60780.0,1.87527228]
[1723312339031,0.000831,60781.0,60780.0,1.327224]
[1723312339222,0.000831,60781.0,60780.0,1.88581863]
[1723312339589,0.000831,60781.0,60780.0,1.88580128]
[1723312339790,0.000831,60781.0,60780.0,1.88738855]
[1723312341423,0.000831,60781.0,60780.0,2.10542121]
[1723312341652,0.005008,60786.0,60780.0,2.10542121]
[1723312341653,1.09137398,60793.0,60788.0,0.889277]
[1723312341859,0.01358417,60789.0,60788.0,1.81789455]
[1723312342082,0.01358417,60789.0,60788.0,1.91630728]
[1723312342284,0.01358417,60789.0,60788.0,1.91789455]
[1723312342724,0.01358417,60789.0,60788.0,1.92193643]
[1723312342917,0.01358417,60789.0,60788.0,1.85350352]
[1723312343128,0.01358417,60789.0,60788.0,1.92179708]
[1723312343565,0.01358417,60789.0,60788.0,2.08471581]
[1723312343771,0.01358417,60789.0,60788.0,2.08630308]
[1723312344233,0.01358417,60789.0,60788.0,2.11012498]
[1723312344583,0.01358417,60789.0,60788.0,2.0071869]
[1723312344790,0.0065844,60800.0,60791.0,0.89082827]
[1723312345044,0.0025844,60800.0,60799.0,0.092238]
[1723312345249,0.0025844,60800.0,60799.0,1.26644285]
[1723312345467,0.0025844,60800.0,60799.0,1.74279424]
[1723312345869,0.0025844,60800.0,60799.0,1.74279206]
[1723312346073,0.0025844,60800.0,60799.0,1.59539485]
[1723312346280,0.0025844,60800.0,60799.0,1.59698212]
[1723312346480,0.0025844,60800.0,60799.0,1.52953889]
[1723312346681,0.0025844,60800.0,60799.0,1.42350669]
[1723312347127,0.0025844,60800.0,60799.0,1.41250669]
[1723312347338,0.0025844,60800.0,60799.0,1.42650669]
[1723312347754,0.0025844,60800.0,60799.0,1.44050669]
[1723312348166,0.0025844,60800.0,60799.0,1.41250669]
[1723312348369,0.0025844,60800.0,60799.0,1.44050846]
[1723312348578,0.0025844,60800.0,60799.0,1.44455034]
[1723312348964,0.0025844,60800.0,60799.0,1.44613761]
[1723312349137,0.0025844,60800.0,60799.0,1.27384356]
[1723312349891,0.0025844,60800.0,60799.0,1.12327972]
[1723312350003,0.0025844,60800.0,60799.0,1.43213428]
[1723312350214,0.0025844,60800.0,60799.0,1.0549988]
[1723312350403,0.0025844,60800.0,60799.0,1.27384191]
[1723312351423,0.0025844,60800.0,60799.0,1.36846631]
[1723312351625,0.0025844,60800.0,60799.0,1.3824694]
[1723312351849,0.0025844,60800.0,60799.0,1.3964694]
[1723312352089,0.0025844,60800.0,60799.0,1.39646433]
[1723312353466,0.0025844,60800.0,60799.0,1.27384628]
[1723312354040,0.0034154,60800.0,60799.0,1.37192174]
[1723312354513,0.0034154,60800.0,60799.0,1.27384628]
[1723312354802,0.0034154,60800.0,60799.0,1.37189838]
[1723312355216,0.0034154,60800.0,60799.0,1.34739223]
[1723312355423,0.0034154,60800.0,60799.0,1.27384608]
[1723312355626,0.0034154,60800.0,60799.0,1.34738087]
[1723312355747,0.0034154,60800.0,60799.0,1.37190081]
[1723312356390,0.0034154,60800.0,60799.0,1.27384871]
[1723312356591,0.0034154,60800.0,60799.0,1.37188181]
[1723312356839,0.0034154,60800.0,60799.0,1.27384871]
[1723312356997,0.0034154,60800.0,60799.0,1.27384246]
[1723312357271,0.0034154,60800.0,60799.0,1.37345351]
[1723312359627,0.0034154,60800.0,60799.0,1.34545351]
[1723312359785,0.0034154,60800.0,60799.0,1.37345351]
[1723312360188,0.0034154,60800.0,60799.0,1.37186624]
[1723312360589,0.0034154,60800.0,60799.0,1.37345351]
[1723312360797,0.0034154,60800.0,60799.0,1.27542973]
[1723312361000,0.0034154,60800.0,60799.0,1.07058607]
[1723312361198,0.0034154,60800.0,60799.0,1.37345543]
[1723312361400,0.0034154,60800.0,60799.0,1.34892519]
[1723312362661,0.0034154,60800.0,60799.0,1.54415496]
[1723312364062,0.0034154,60800.0,60799.0,1.72808599]
[1723312364274,0.0034154,60800.0,60799.0,1.33931166]
[1723312364509,0.0034154,60800.0,60799.0,1.54415298]
[1723312364702,0.0034154,60800.0,60799.0,1.27542778]
[1723312364934,0.0034154,60800.0,60799.0,1.63003495]
[1723312365352,0.0034154,60800.0,60799.0,1.62844768]
[1723312365943,0.0034154,60800.0,60799.0,1.72893994]
[1723312366460,0.0034154,60800.0,60799.0,1.63094905]
[1723312366667,0.0034154,60800.0,60799.0,1.70093535]
[1723312366975,0.0034154,60800.0,60799.0,1.72893535]
[1723312367182,0.0034154,60800.0,60799.0,1.71493535]
[1723312367348,0.0034154,60800.0,60799.0,1.70093535]
[1723312367566,0.0034154,60800.0,60799.0,1.61694905]
[1723312367986,0.0034154,60800.0,60799.0,1.19927575]
[1723312368169,0.0034154,60800.0,60799.0,1.69065882]
[1723312368803,0.0034154,60800.0,60799.0,1.70465882]
[1723312369391,0.0034154,60800.0,60799.0,1.84765882]
[1723312370222,0.0034154,60800.0,60799.0,1.84766498]
[1723312370493,0.0034154,60800.0,60799.0,1.77416381]
[1723312370825,0.0034154,60800.0,60799.0,1.87216537]
[1723312371027,0.0034154,60800.0,60799.0,1.89507849]
[1723312371231,0.0034154,60800.0,60799.0,1.89666576]
[1723312371443,0.0034154,60800.0,60799.0,1.80767256]
[1723312371846,0.0034154,60800.0,60799.0,1.31629075]
[1723312372060,0.0034154,60800.0,60799.0,1.8083528]
[1723312372448,0.0034154,60800.0,60799.0,1.56882901]
[1723312372645,0.0034154,60800.0,60799.0,1.80941272]
[1723312374131,0.0034154,60800.0,60799.0,1.81926035]
[1723312375345,0.0034154,60800.0,60799.0,1.72125431]
[1723312375747,0.0034154,60800.0,60799.0,1.55054972]
[1723312375923,0.0034154,60800.0,60799.0,1.78595431]
[1723312377548,0.0034154,60800.0,60799.0,1.88885781]
[1723312378085,0.0034154,60800.0,60799.0,1.64002376]
[1723312378295,0.0034154,60800.0,60799.0,1.70460123]
[1723312378569,0.0034154,60800.0,60799.0,1.82071574]
[1723312378747,0.0034154,60800.0,60799.0,1.31920367]
[1723312379177,0.0034154,60800.0,60799.0,1.67424638]
[1723312379379,0.0034154,60800.0,60799.0,2.0255033]
[1723312379984,0.0034154,60800.0,60799.0,1.88893963]
[1723312380233,0.0034154,60800.0,60799.0,1.88735236]
[1723312380548,0.0034154,60800.0,60799.0,2.05755311]
[1723312381289,0.0034154,60800.0,60799.0,2.05596584]
[1723312382722,0.0034154,60800.0,60799.0,1.57418437]
[1723312382932,0.0034154,60800.0,60799.0,2.06530951]
[1723312383331,0.0034154,60800.0,60799.0,2.06540274]
[1723312385740,0.0034154,60800.0,60799.0,1.98530274]
[1723312386386,0.0034154,60800.0,60799.0,1.42580208]
[1723312386600,0.0034154,60800.0,60799.0,2.13251636]
[1723312386798,0.0034154,60800.0,60799.0,2.21431636]
[1723312387020,0.0034154,60800.0,60799.0,2.21590363]
[1723312387510,0.0034154,60800.0,60799.0,2.1333417]
[1723312387941,0.0034154,60800.0,60799.0,2.14318916]
[1723312388163,0.0034154,60800.0,60799.0,2.1333417]
[1723312390401,0.0034154,60800.0,60799.0,1.96232645]
[1723312390614,0.0034154,60800.0,60799.0,2.35074763]
[1723312393178,0.0034154,60800.0,60799.0,2.13303177]
[1723312394125,0.0034154,60800.0,60799.0,1.96235223]
[1723312394355,0.0034154,60800.0,60799.0,2.13305704]
[1723312394606,0.0034154,60800.0,60799.0,2.13305705]
[1723312395328,0.0651154,60800.0,60799.0,1.98655705]
[1723312395798,0.0034154,60800.0,60799.0,1.98655705]
[1723312396661,0.0034154,60800.0,60799.0,2.13175705]
[1723312397919,0.0034154,60800.0,60799.0,2.13165583]
[1723312398053,0.0034154,60800.0,60799.0,2.14149917]
[1723312398274,0.0034154,60800.0,60799.0,2.13165583]
[1723312398469,1.15317398,60808.0,60807.0,0.914497]
[1723312398470,1.09147398,60808.0,60807.0,0.914497]
[1723312398820,0.0001,60808.0,60807.0,1.8842784]
[1723312398958,0.0001,60808.0,60807.0,1.99701102]
[1723312399151,0.0001,60808.0,60807.0,1.98875618]
[1723312399588,0.0001,60808.0,60807.0,2.06905837]
[1723312399989,0.0001,60808.0,60807.0,2.05505837]
[1723312400193,0.0001,60808.0,60807.0,2.06905837]
[1723312400397,0.0001,60808.0,60807.0,1.85130218]
[1723312400598,0.0001,60808.0,60807.0,1.93730218]
[1723312400798,0.0001,60808.0,60807.0,1.93830218]
[1723312401053,0.0001,60808.0,60807.0,1.92430218]
[1723312401245,0.0001,60808.0,60807.0,1.93830218]
[1723312401454,0.000931,60808.0,60807.0,1.93830218]
[1723312401675,0.000931,60808.0,60807.0,1.92430218]
[1723312401879,0.000931,60808.0,60807.0,1.92675679]
[1723312402081,0.000931,60808.0,60807.0,1.87535679]
[1723312402497,0.000931,60808.0,60807.0,1.78248911]
[1723312402699,0.000931,60808.0,60807.0,1.76848911]
[1723312402903,0.000931,60808.0,60807.0,1.70378911]
[1723312403116,0.000931,60808.0,60807.0,1.62798911]
[1723312403329,0.140031,60808.0,60807.0,1.4989843]
[1723312403542,0.140031,60808.0,60807.0,1.5129843]
[1723312403949,0.140031,60808.0,60807.0,1.4849843]
[1723312404155,0.140031,60808.0,60807.0,1.4989843]
[1723312404368,0.140031,60808.0,60807.0,1.5129843]
[1723312404574,0.140031,60808.0,60807.0,1.5359843]
[1723312404779,0.140031,60808.0,60807.0,1.5219843]
[1723312405010,0.140031,60808.0,60807.0,1.11318172]
[1723312405218,0.140031,60808.0,60807.0,1.52540104]
[1723312405628,0.140031,60808.0,60807.0,1.52539927]
[1723312407970,1.23140498,60808.0,60807.0,1.52539927]
[1723312408847,1.23140498,60808.0,60807.0,1.52546389]
[1723312412545,1.23140498,60808.0,60807.0,1.20587995]
[1723312412759,1.23140498,60808.0,60807.0,1.5259369]
[1723312413218,1.23140498,60808.0,60807.0,1.55598086]
[1723312413466,1.23140498,60808.0,60807.0,1.52594039]
[1723312413991,1.23140498,60808.0,60807.0,1.64883767]
[1723312414107,1.15400498,60808.0,60807.0,1.64883767]
[1723312414349,1.15400498,60808.0,60807.0,1.52594039]
[1723312414589,1.15400498,60808.0,60807.0,1.69663624]
[1723312414826,1.09230498,60808.0,60807.0,1.77243624]
[1723312415058,1.09230498,60808.0,60807.0,1.91990138]
[1723312415348,1.09230498,60808.0,60807.0,1.69663624]
[1723312415807,1.09230498,60808.0,60807.0,1.83006865]
[1723312416029,1.09230498,60808.0,60807.0,1.29428284]
[1723312416252,1.09230498,60808.0,60807.0,1.69700826]
[1723312416461,1.09230498,60808.0,60807.0,1.98574753]
[1723312416660,1.09230498,60808.0,60807.0,1.98562589]
[1723312417123,1.09230498,60808.0,60807.0,1.97162234]
[1723312417296,1.09230498,60808.0,60807.0,1.98562234]
[1723312417493,1.09230498,60808.0,60807.0,1.97162234]
[1723312417714,1.09230498,60808.0,60807.0,1.98562234]
[1723312418046,1.09230498,60808.0,60807.0,1.83818307]
[1723312418221,1.09230498,60808.0,60807.0,1.82418307]
[1723312418424,1.09230498,60808.0,60807.0,1.9716064]
[1723312418630,1.09230498,60808.0,60807.0,1.9856064]
[1723312419164,1.09230498,60808.0,60807.0,1.81018307]
[1723312419464,1.09230498,60808.0,60807.0,1.82418307]
[1723312419591,1.09230498,60808.0,60807.0,1.98559627]
[1723312419794,1.09230498,60808.0,60807.0,1.73263486]
[1723312419999,1.09230498,60808.0,60807.0,1.98559592]
[1723312420368,1.09230498,60808.0,60807.0,1.82418272]
[1723312420500,1.09230498,60808.0,60807.0,1.97159256]
[1723312420696,1.09230498,60808.0,60807.0,1.74468272]
[1723312420971,1.09230498,60808.0,60807.0,1.90610212]
[1723312421171,1.15570498,60808.0,60807.0,1.69688272]
[1723312421372,1.15570498,60808.0,60807.0,1.52619625]
[1723312421694,1.09230498,60808.0,60807.0,1.52619625]
[1723312422491,1.09230498,60808.0,60807.0,1.69688966]
[1723312422640,1.09230498,60808.0,60807.0,1.68288966]
[1723312422906,1.09230498,60808.0,60807.0,1.69688966]
[1723312423798,1.09230498,60808.0,60807.0,1.69689841]
[1723312424557,1.09230498,60808.0,60807.0,1.52620073]
[1723312427195,1.09271771,60808.0,60807.0,1.52620073]
[1723312427398,1.09271771,60808.0,60807.0,1.5264583]
[1723312427607,1.09230498,60808.0,60807.0,1.2788998]
[1723312427807,1.09230498,60808.0,60807.0,1.83844513]
[1723312428216,1.09230498,60808.0,60807.0,1.60224581]
[1723312428414,1.09230498,60808.0,60807.0,1.77294286]
[1723312431222,1.09230498,60808.0,60807.0,1.7729399]
[1723312431483,1.09230498,60808.0,60807.0,1.92051518]
[1723312432548,0.000931,60808.0,60807.0,1.98691518]
[1723312432753,0.00831,60817.0,60816.0,0.898135]
[1723312432997,0.00831,60817.0,60816.0,1.88936317]
[1723312433212,0.00831,60817.0,60816.0,1.87231756]
[1723312433433,0.00831,60817.0,60816.0,1.87073029]
[1723312433651,0.00831,60817.0,60816.0,1.72738778]
[1723312434080,0.00831,60817.0,60816.0,1.72897505]
[1723312434317,0.00831,60817.0,60816.0,1.74138778]
[1723312434526,0.00831,60817.0,60816.0,1.87570965]
[1723312434731,0.00831,60817.0,60816.0,1.87563145]
[1723312434941,0.00831,60817.0,60816.0,1.90363145]
[1723312435158,0.048125,60827.0,60826.0,0.739813]
[1723312435363,0.048125,60827.0,60826.0,1.38824315]
[1723312435567,0.048125,60827.0,60826.0,1.3583147]
[1723312435981,0.048125,60827.0,60826.0,1.71409171]
[1723312436228,0.048125,60827.0,60826.0,1.71813359]
[1723312436441,0.048125,60827.0,60826.0,1.72972086]
[1723312436643,0.048125,60827.0,60826.0,1.89412386]
[1723312437050,0.048125,60827.0,60826.0,1.74213359]
[1723312437262,0.048125,60827.0,60826.0,1.75613359]
[1723312437470,0.048125,60827.0,60826.0,1.57150274]
[1723312437681,0.048125,60827.0,60826.0,1.51869562]
[1723312437888,0.048125,60827.0,60826.0,1.50469562]
[1723312438091,0.048125,60827.0,60826.0,1.70384178]
[1723312438303,0.048125,60827.0,60826.0,1.45629562]
[1723312438522,0.048125,60827.0,60826.0,1.30574869]
[1723312438743,0.048125,60827.0,60826.0,1.31974314]
[1723312439352,0.048125,60827.0,60826.0,1.26546508]
[1723312439566,0.048125,60827.0,60826.0,1.4316981]
[1723312439928,0.048125,60827.0,60826.0,1.36344652]
[1723312440152,0.048125,60827.0,60826.0,1.41770018]
[1723312440352,0.048125,60827.0,60826.0,1.32971874]
[1723312440577,0.048125,60827.0,60826.0,1.12654918]
[1723312440786,0.048125,60827.0,60826.0,1.31117204]
[1723312440986,0.048125,60827.0,60826.0,1.50192056]
[1723312441224,0.048125,60827.0,60826.0,1.45372188]
[1723312441427,0.048125,60827.0,60826.0,1.45213801]
[1723312441630,0.048125,60827.0,60826.0,1.31571383]
[1723312441833,0.048125,60827.0,60826.0,1.42765836]
[1723312442034,0.048125,60827.0,60826.0,1.44165836]
[1723312442143,0.048125,60827.0,60826.0,1.42766001]
[1723312442345,0.048125,60827.0,60826.0,1.44166001]
[1723312442982,0.048125,60827.0,60826.0,1.3389109]
[1723312443181,0.048125,60827.0,60826.0,1.3249109]
[1723312443426,0.048125,60827.0,60826.0,1.26546319]
[1723312443642,0.048125,60827.0,60826.0,1.30042272]
[1723312443861,0.048125,60827.0,60826.0,1.25146319]
[1723312444070,0.048125,60827.0,60826.0,1.30042272]
[1723312444254,1.09137398,60832.0,60828.0,0.749786]
[1723312444438,1.09137398,60832.0,60828.0,1.1319022]
[1723312444888,1.09137398,60832.0,60828.0,1.01840092]
[1723312445006,1.09137398,60832.0,60828.0,1.15649538]
[1723312445375,0.00831,60833.0,60832.0,0.01]
[1723312445650,0.00831,60833.0,60832.0,0.82767638]
[1723312445901,0.00831,60833.0,60832.0,1.32083738]
[1723312446101,0.00831,60833.0,60832.0,1.52892767]
[1723312446322,0.00831,60842.0,60841.0,0.913991]
[1723312446550,0.0001,60849.0,60848.0,0.256514]
[1723312446763,0.00831,60850.0,60849.0,0.25809827]
[1723312446994,0.048125,60851.0,60849.0,0.25809827]
[1723312446995,0.008425,60851.0,60850.0,0.14634727]
[1723312447206,0.0657,60873.0,60858.0,0.00158727]
[1723312447422,0.00832,60888.0,60860.0,0.01158727]
[1723312447671,0.09016646,60888.0,60868.0,0.516293]
[1723312447883,0.09016646,60888.0,60868.0,1.3428395]
[1723312448105,0.09016646,60888.0,60868.0,1.7625561]
[1723312448331,0.09016646,60888.0,60887.0,0.1582]
[1723312448332,0.00832,60888.0,60887.0,0.1582]
[1723312448571,0.00832,60888.0,60887.0,1.61752019]
[1723312448783,0.00832,60888.0,60887.0,0.76826717]
[1723312448784,0.00022,60888.0,60887.0,0.76826717]
[1723312449015,0.00022,60888.0,60887.0,0.40528163]
[1723312449229,0.00022,60888.0,60887.0,0.18681492]
[1723312449441,0.00022,60888.0,60887.0,0.43317192]
[1723312449650,0.00022,60888.0,60887.0,0.59740992]
[1723312450082,0.00022,60888.0,60887.0,0.76164792]
[1723312450303,0.00022,60888.0,60887.0,0.59740992]
[1723312450537,0.00022,60888.0,60887.0,0.7796898]
[1723312450752,0.00022,60888.0,60887.0,0.7656898]
[1723312450986,0.00022,60888.0,60887.0,0.8656898]
[1723312451199,0.00022,60888.0,60887.0,0.8936898]
[1723312451415,0.00022,60888.0,60887.0,0.88937101]
[1723312451821,0.00022,60888.0,60887.0,0.87537101]
[1723312452028,0.00022,60888.0,60887.0,0.88937101]
[1723312452245,0.00022,60888.0,60887.0,0.6294518]
[1723312452653,0.00373,60890.0,60889.0,0.410582]
[1723312452914,0.00373,60890.0,60889.0,0.59739692]
[1723312453165,0.00373,60890.0,60889.0,0.76162992]
[1723312453573,0.00373,60890.0,60889.0,0.86162992]
[1723312454400,0.00373,60890.0,60889.0,0.87562992]
[1723312455064,0.00373,60890.0,60889.0,0.88962992]
[1723312455552,0.00373,60890.0,60889.0,0.87562992]
[1723312455832,0.00373,60890.0,60889.0,0.86162992]
[1723312456096,0.00373,60890.0,60889.0,0.7656718]
[1723312456596,0.00373,60890.0,60889.0,0.7796718]
[1723312456823,0.00373,60890.0,60889.0,0.7656718]
[1723312457064,0.00373,60890.0,60889.0,0.7796718]
[1723312457323,0.00373,60890.0,60889.0,0.7936718]
[1723312457590,0.00373,60890.0,60889.0,0.7656718]
[1723312457818,0.00373,60890.0,60889.0,0.7936718]
[1723312458036,0.00373,60890.0,60889.0,0.7796718]
[1723312458296,0.00369,60890.0,60889.0,0.7796718]
[1723312458787,0.00369,60890.0,60889.0,0.7936718]
[1723312459025,0.00369,60890.0,60889.0,0.79525907]
[1723312459264,0.00369,60890.0,60889.0,1.20229207]
[1723312459509,0.00369,60890.0,60889.0,1.24525207]
[1723312459733,0.00369,60890.0,60889.0,1.2436648]
[1723312459987,0.00369,60890.0,60889.0,1.24525207]
[1723312460224,0.00369,60890.0,60889.0,1.21725207]
[1723312460467,0.00369,60890.0,60889.0,1.23216507]
[1723312460709,0.00369,60890.0,60889.0,1.2305778]
[1723312461193,0.00369,60890.0,60889.0,1.2165778]
[1723312461427,0.00369,60890.0,60889.0,1.24616507]
[1723312462147,0.00369,60890.0,60889.0,1.41039807]
[1723312462838,0.00369,60890.0,60889.0,1.23216507]
[1723312463101,0.00369,60890.0,60889.0,1.21816507]
[1723312463306,0.00369,60890.0,60889.0,1.23216507]
[1723312463524,0.00369,60890.0,60889.0,1.39639807]
[1723312463734,0.00369,60890.0,60889.0,1.23216507]
[1723312463945,0.0106216,60904.0,60903.0,1.057437]
[1723312464180,0.0001,60909.0,60907.0,0.42046]
[1723312464408,0.47171273,60927.0,60907.0,0.42046]
[1723312464409,0.0001,60929.0,60928.0,0.41032]
[1723312464617,0.0001,60929.0,60928.0,0.793348]
[1723312464825,0.0001,60929.0,60928.0,0.79303492]
[1723312465237,0.0001,60929.0,60928.0,0.95716292]
[1723312465447,0.0001,60929.0,60928.0,0.79303492]
[1723312465653,0.0001,60929.0,60928.0,0.95716292]
[1723312466068,0.0001,60929.0,60928.0,0.79303492]
[1723312466489,0.0001,60929.0,60928.0,0.95716292]
[1723312466693,0.0001,60929.0,60928.0,0.80703492]
[1723312466902,0.0001,60929.0,60928.0,0.79303492]
[1723312467108,0.0001,60929.0,60928.0,0.8110768]
[1723312467314,0.0001,60929.0,60928.0,0.9752048]
[1723312467933,0.0001,60929.0,60928.0,0.9612048]
[1723312468399,0.0827,60929.0,60928.0,0.5781768]
[1723312468840,0.08311273,60929.0,60928.0,0.4280488]
[1723312469043,0.08311273,60929.0,60928.0,0.1818568]
[1723312469251,0.14951273,60929.0,60928.0,0.1818568]
[1723312469462,0.14951273,60929.0,60928.0,0.01804188]
[1723312469463,0.24157473,60929.0,60928.0,0.01804188]
[1723312469672,1.27539871,60929.0,60928.0,0.01804188]
[1723312469877,0.93714871,60929.0,60928.0,0.03204188]
[1723312470098,1.10127371,60929.0,60928.0,0.01804188]
[1723312470305,0.93673598,60929.0,60928.0,0.02804188]
[1723312470507,0.93673598,60929.0,60928.0,0.01404188]
[1723312470508,1.10127371,60929.0,60928.0,0.01404188]
[1723312470745,1.10127371,60929.0,60928.0,0.01804188]
[1723312471010,1.27539871,60929.0,60928.0,0.02804188]
[1723312471218,1.43952371,60929.0,60928.0,0.01404188]
[1723312471431,1.37539871,60929.0,60928.0,0.01404188]
[1723312471640,0.95508671,60929.0,60928.0,0.02104188]
[1723312471845,0.95508671,60929.0,60928.0,0.01104188]
[1723312472057,0.95508671,60929.0,60928.0,0.00404188]
[1723312472266,1.03714871,60929.0,60928.0,0.00404188]
[1723312472473,1.04714871,60929.0,60928.0,0.00504188]
[1723312472700,1.21127371,60929.0,60928.0,0.00504188]
[1723312473111,1.04797871,60929.0,60928.0,0.00504188]
[1723312473343,0.95591671,60929.0,60928.0,0.00504188]
[1723312473556,1.03797871,60929.0,60928.0,0.00504188]
[1723312473762,0.95591671,60929.0,60928.0,0.00404188]
[1723312473983,0.95591671,60929.0,60928.0,0.1678568]
[1723312474191,0.15034273,60929.0,60928.0,0.2509208]
[1723312474394,0.23240473,60929.0,60928.0,0.00504188]
[1723312474630,0.39652973,60929.0,60928.0,0.00504188]
[1723312474859,0.396117,60929.0,60928.0,0.00404188]
[1723312475110,0.39652973,60929.0,60928.0,0.00504188]
[1723312475319,0.57065473,60929.0,60928.0,0.00504188]
[1723312475528,0.57065473,60929.0,60928.0,0.00404188]
[1723312475939,0.40652973,60929.0,60928.0,0.00504188]
[1723312476212,0.57065473,60929.0,60928.0,0.00504188]
[1723312476626,0.40652973,60929.0,60928.0,0.00504188]
[1723312477281,0.57065473,60929.0,60928.0,0.00504188]
[1723312477524,0.06601273,60910.0,60909.0,0.246265]
[1723312477763,0.76654483,60910.0,60909.0,0.38225054]
[1723312477977,0.76654483,60910.0,60909.0,0.24590392]
[1723312478418,0.76654483,60910.0,60909.0,0.16381492]
[1723312478646,0.00041273,60899.0,60898.0,0.164208]
[1723312478856,0.00041273,60899.0,60898.0,0.71070694]
[1723312479076,0.00041273,60899.0,60898.0,0.54649794]
[1723312479491,0.08011273,60899.0,60898.0,0.30018594]
[1723312479706,0.14571273,60899.0,60898.0,0.41012792]
[1723312479938,0.14571273,60899.0,60898.0,0.16381492]
[1723312480359,0.22781573,60899.0,60898.0,0.014]
[1723312480577,0.00041273,60893.0,60892.0,0.082112]
[1723312480790,0.70094483,60893.0,60892.0,0.24592692]
[1723312480995,0.70826659,60893.0,60892.0,0.24592692]
[1723312481208,0.70826659,60893.0,60892.0,0.41015192]
[1723312481419,0.70826659,60893.0,60892.0,0.24592692]
[1723312481842,0.70826659,60893.0,60892.0,0.16381492]
[1723312482273,0.70826659,60893.0,60891.0,0.03]
[1723312482274,0.22922473,60892.0,60891.0,0.03]
[1723312482483,0.66767473,60892.0,60891.0,0.03]
[1723312482705,0.67487612,60892.0,60891.0,0.03]
[1723312482910,0.75672258,60892.0,60891.0,0.03]
[1723312483322,0.00041273,60875.0,60874.0,0.164271]
[1723312483529,0.00041273,60875.0,60874.0,0.71091627]
[1723312483530,0.67003183,60875.0,60874.0,0.71091627]
[1723312483988,0.73513183,60875.0,60874.0,0.41022392]
[1723312484404,0.67003183,60875.0,60874.0,0.57449692]
[1723312484823,0.67723257,60875.0,60874.0,0.57449692]
[1723312485029,0.67003183,60875.0,60874.0,0.57449692]
[1723312485206,0.00041273,60875.0,60874.0,0.41022392]
[1723312485437,0.00763332,60875.0,60874.0,0.41022392]
[1723312485641,0.00763332,60875.0,60874.0,0.57449692]
[1723312485857,0.00041273,60876.0,60875.0,0.082135]
[1723312486086,0.00041273,60876.0,60875.0,0.51052092]
[1723312486322,0.00041273,60876.0,60875.0,0.67479192]
[1723312486744,0.00041273,60876.0,60875.0,0.83906292]
[1723312486927,0.00041273,60881.0,60880.0,0.246385]
[1723312487171,0.00041273,60881.0,60880.0,0.59745692]
[1723312488819,0.00041273,60881.0,60880.0,0.59945692]
[1723312489238,0.00041273,60882.0,60881.0,0.410635]
[1723312489441,0.00041273,60882.0,60881.0,0.59744992]
[1723312490063,0.00041273,60883.0,60882.0,0.41063]
[1723312490285,0.00041273,60883.0,60882.0,0.57444492]
[1723312490704,0.00041273,60885.0,60884.0,0.574861]
[1723312490912,0.0607,60892.0,60886.0,0.246361]
[1723312490913,0.00041273,60887.0,60886.0,0.246361]
[1723312491120,0.00041273,60887.0,60886.0,0.59741692]
[1723312491571,0.00041273,60887.0,60886.0,0.76165792]
[1723312491791,0.0607,60892.0,60891.0,0.082113]
[1723312491792,0.06111273,60892.0,60891.0,0.082113]
[1723312491992,0.164174,60911.0,60891.0,0.082113]
[1723312491993,0.0607,60899.0,60898.0,0.246313]
[1723312492202,0.0607,60899.0,60898.0,0.57433692]
[1723312492203,0.06111273,60899.0,60898.0,0.57433692]
[1723312492423,0.00041273,60899.0,60898.0,0.57433692]
[1723312493452,0.00041273,60899.0,60898.0,0.76254592]
[1723312493659,0.00041273,60907.0,60900.0,0.0755]
[1723312493867,0.00041273,60907.0,60906.0,0.410467]
[1723312494074,0.00041273,60907.0,60906.0,0.59728192]
[1723312494484,0.00041273,60910.0,60909.0,0.410447]
[1723312494694,0.00041273,60910.0,60909.0,0.59726192]
[1723312495764,0.00041273,60910.0,60909.0,0.60026192]
[1723312495980,0.00041273,60917.0,60916.0,0.32832]
[1723312496180,0.00041273,60917.0,60916.0,0.57421492]
[1723312496638,0.00041273,60917.0,60916.0,0.76137492]
[1723312498306,0.00041273,60917.0,60916.0,0.76337492]
[1723312498967,0.00041273,60917.0,60916.0,0.76737492]
[1723312500715,0.00041273,60917.0,60916.0,0.41605492]
[1723312500916,0.00041273,60917.0,60916.0,0.58021492]
[1723312501963,0.00041273,60917.0,60916.0,0.41605492]
[1723312501964,0.06111273,60917.0,60916.0,0.41605492]
[1723312502296,0.06111273,60917.0,60916.0,0.58021492]
[1723312502507,0.06111273,60917.0,60916.0,0.25189492]
[1723312502741,0.06111273,60917.0,60916.0,0.41605492]
[1723312503185,0.06111273,60917.0,60916.0,0.58021492]
[1723312503186,0.00041273,60917.0,60916.0,0.58021492]
[1723312503391,0.00041273,60923.0,60922.0,0.082072]
[1723312503612,0.00041273,60923.0,60922.0,0.43303092]
[1723312503829,0.00041273,60923.0,60922.0,0.59717492]
[1723312504069,0.08031273,60923.0,60922.0,0.41003092]